fUST/lending_fUST_20251115
["ID","MTS","AMOUNT","RATE_DAILY","PERIOD"]
[394027314,1763200299860,-500.0,0.00050684,120]
[394027315,1763200299870,-533.64,0.00050684,120]
[394027316,1763200299880,-500.0,0.00050684,120]
[394027317,1763200299889,-500.0,0.00050684,120]
[394027318,1763200299899,-1390.62,0.00050684,120]
[394027319,1763200299907,-500.0,0.00050684,120]
[394027320,1763200299917,-572.61,0.00050684,120]
[394027321,1763200299925,-1276.71,0.00050684,120]
[394027322,1763200299935,-500.0,0.00050684,120]
[394027323,1763200299944,-945.13,0.00050684,120]
[394027324,1763200299953,-1188.94,0.00050684,120]
[394027325,1763200299961,-500.0,0.00050684,120]
[394027326,1763200299970,-1077.77,0.00050684,120]
[394027327,1763200299979,-500.0,0.00050684,120]
[394027328,1763200299988,-500.0,0.00050684,120]
[394027329,1763200299997,-500.0,0.00050684,120]
[394027330,1763200300006,-1791.91,0.00050684,120]
[394027331,1763200300015,-500.0,0.00050684,120]
[394027332,1763200300024,-500.0,0.00050684,120]
[394027333,1763200300033,-500.0,0.00050684,120]
[394027334,1763200300041,-500.0,0.00050684,120]
[394027335,1763200300050,-500.0,0.00050684,120]
[394027336,1763200300060,-500.0,0.00050684,120]
[394027337,1763200300073,-500.0,0.00050684,120]
[394027338,1763200300084,-1017.14,0.00050684,120]
[394027339,1763200300093,-500.0,0.00050684,120]
[394027340,1763200300102,-551.2166412,0.00050684,120]
[394027341,1763200300111,-500.0,0.00050684,120]
[394027342,1763200300119,-500.0,0.00050684,120]
[394027343,1763200300128,-936.67,0.00050684,120]
[394027344,1763200300137,-500.0,0.00050684,120]
[394027345,1763200300146,-500.0,0.00050684,120]
[394027346,1763200300155,-649.89,0.00050684,120]
[394027347,1763200300164,-1776.75,0.00050684,120]
[394027348,1763200300174,-500.0,0.00050684,120]
[394027349,1763200300183,-500.0,0.00050684,120]
[394027350,1763200300192,-500.0,0.00050684,120]
[394027351,1763200300201,-500.0,0.00050684,120]
[394027352,1763200300214,-500.0,0.00050684,120]
[394027353,1763200300223,-500.0,0.00050684,120]
[394027354,1763200300232,-500.0,0.00050684,120]
[394027355,1763200300241,-532.97,0.00050684,120]
[394027356,1763200300252,-500.0,0.00050684,120]
[394027357,1763200300262,-777.09,0.00050684,120]
[394027358,1763200300270,-500.0,0.00050684,120]
[394027359,1763200300280,-500.0,0.00050684,120]
[394027360,1763200300290,-500.0,0.00050684,120]
[394027361,1763200300299,-500.0,0.00050684,120]
[394027362,1763200300309,-1276.7,0.00050684,7]
[394027363,1763200300318,-927.9,0.00050684,120]
[394027364,1763200300327,-500.0,0.00050684,120]
[394027365,1763200300336,-979.1,0.00050684,120]
[394027366,1763200300345,-769.66,0.00050684,120]
[394027367,1763200300354,-500.0,0.00050684,120]
[394027368,1763200300364,-500.0,0.00050684,120]
[394027369,1763200300373,-500.0,0.00050684,120]
[394027370,1763200300383,-500.0,0.00050684,120]
[394027371,1763200300392,-609.02,0.00050684,120]
[394027372,1763200300401,-500.0,0.00050684,10]
[394027373,1763200300410,-500.0,0.00050684,120]
[394027374,1763200300419,-500.0,0.00050684,120]
[394027375,1763200300429,-500.0,0.00050684,120]
[394027376,1763200300439,-624.67,0.00050684,120]
[394027377,1763200300448,-500.0,0.00050684,120]
[394027378,1763200300458,-500.0,0.00050684,120]
[394027379,1763200300468,-500.0,0.00050684,120]
[394027380,1763200300477,-500.0,0.00050684,120]
[394027381,1763200300487,-500.0,0.00050684,120]
[394027382,1763200300497,-500.0,0.00050684,120]
[394027383,1763200300507,-745.41,0.00050684,120]
[394027384,1763200300516,-500.0,0.00050684,120]
[394027385,1763200300526,-500.0,0.00050684,120]
[394027386,1763200300535,-500.0,0.00050684,120]
[394027387,1763200300544,-500.0,0.00050684,120]
[394027388,1763200300554,-4568.1,0.00050684,3]
[394027389,1763200300563,-540.89633047,0.00050684,120]
[394027390,1763200300572,-500.0,0.00050684,120]
[394027391,1763200300582,-500.0,0.00050684,120]
[394027392,1763200300591,-1131.39,0.00050684,120]
[394027393,1763200300600,-500.0,0.00050684,120]
[394027394,1763200300609,-500.0,0.00050684,120]
[394027395,1763200300619,-500.0,0.00050684,120]
[394027396,1763200300628,-500.0,0.00050684,120]
[394027397,1763200300638,-797.3,0.00050684,120]
[394027398,1763200300647,-500.0,0.00050684,120]
[394027399,1763200300656,-849.34,0.00050684,120]
[394027400,1763200300665,-500.0,0.00050684,120]
[394027401,1763200300675,-500.0,0.00050684,120]
[394027402,1763200300687,-500.0,0.00050684,120]
[394027403,1763200300697,-577.74,0.00050684,120]
[394027404,1763200300708,-647.88,0.00050684,120]
[394027405,1763200300717,-533.55305266,0.00050684,30]
[394027406,1763200300727,-500.0,0.00050684,120]
[394027407,1763200300736,-566.74,0.00050684,120]
[394027408,1763200300745,-636.73,0.00050684,120]
[394027409,1763200300755,-500.0,0.00050684,30]
[394027410,1763200300765,-500.0,0.00050684,120]
[394027411,1763200300774,-500.0,0.00050684,120]
[394027412,1763200300783,-500.0,0.00050684,120]
[394027413,1763200300792,-1133.68,0.00050684,120]
[394027414,1763200300802,-500.0,0.00050684,120]
[394027415,1763200300811,-500.0,0.00050684,120]
[394027416,1763200300820,-1012.59,0.00050684,120]
[394027417,1763200300830,-800.22,0.00050684,120]
[394027418,1763200300839,-500.0,0.00050684,120]
[394027419,1763200300849,-500.0,0.00050684,120]
[394027420,1763200300858,-1236.1,0.00050684,120]
[394027421,1763200300867,-500.0,0.00050684,120]
[394027422,1763200300877,-815.37,0.00050684,120]
[394027423,1763200300886,-500.0,0.00050684,120]
[394027424,1763200300896,-638.05287757,0.00050684,120]
[394027425,1763200300905,-500.0,0.00050684,120]
[394027426,1763200300914,-536.01859323,0.00050684,120]
[394027427,1763200300923,-500.0,0.00050684,120]
[394027428,1763200300932,-500.0,0.00050684,120]
[394027429,1763200300941,-617.48,0.00050684,120]
[394027430,1763200300951,-1270.32,0.00050684,120]
[394027431,1763200300960,-500.0,0.00050684,120]
[394027432,1763200300969,-500.0,0.00050684,120]
[394027433,1763200300978,-2708.03,0.00050684,120]
[394027434,1763200300987,-500.0,0.00050684,120]
[394027435,1763200300996,-500.0,0.00050684,120]
[394027436,1763200301005,-500.0,0.00050684,120]
[394027437,1763200301015,-524.53311044,0.00050684,120]
[394027438,1763200301025,-500.0,0.00050684,120]
[394027439,1763200301035,-500.0,0.00050684,120]
[394027440,1763200301045,-1700.39,0.00050684,120]
[394027441,1763200301056,-845.92,0.00050684,120]
[394027442,1763200301066,-590.7,0.00050684,120]
[394027443,1763200301076,-500.0,0.00050684,120]
[394027444,1763200301086,-500.0,0.00050684,120]
[394027445,1763200301098,-500.0,0.00050684,120]
[394027446,1763200301109,-500.0,0.00050684,120]
[394027447,1763200301119,-500.0,0.00050684,7]
[394027448,1763200301128,-500.0,0.00050684,120]
[394027449,1763200301138,-502.80686755,0.00050684,120]
[394027450,1763200301147,-500.0,0.00050684,120]
[394027451,1763200301156,-500.0,0.00050684,120]
[394027452,1763200301164,-520.65449199,0.00050684,120]
[394027453,1763200301173,-500.0,0.00050684,120]
[394027454,1763200301182,-500.0,0.00050684,120]
[394027455,1763200301191,-500.0,0.00050684,120]
[394027456,1763200301201,-576.07,0.00050684,120]
[394027457,1763200301211,-500.0,0.00050684,120]
[394027458,1763200301222,-503.13004772,0.00050684,120]
[394027459,1763200301230,-500.0,0.00050684,120]
[394027460,1763200301240,-500.0,0.00050684,120]
[394027461,1763200301249,-500.0,0.00050684,120]
[394027462,1763200301260,-580.02,0.00050684,120]
[394027463,1763200301270,-500.0,0.00050684,120]
[394027464,1763200301413,-500.0,0.00050684,120]
[394027465,1763200301423,-1000.0,0.00050684,2]
[394027466,1763200301432,-221.6,0.00050684,120]
[394027467,1763200301441,-1000.0,0.00050684,2]
[394027468,1763200301451,-500.0,0.00050684,14]
[394027469,1763200301460,-500.0,0.00050684,120]
[394027470,1763200301470,-500.0,0.00050684,120]
[394027471,1763200301479,-812.44,0.00050684,2]
[394027472,1763200301488,-557.41,0.00050684,120]
[394027473,1763200301497,-1000.0,0.00050684,30]
[394027474,1763200301506,-593.6265394,0.00050685,30]
[394027475,1763200301516,-159.0,0.000507,120]
[394027476,1763200301526,-158.78343214,0.00050767,30]
[394027477,1763200301535,-334.0,0.000508,30]
[394027478,1763200301544,-300.0,0.00050849,90]
[394027479,1763200301553,-380.780957,0.00050902,2]
[394027480,1763200301563,-500.0,0.00050958,120]
[394027481,1763200301573,-687.74,0.00050958,120]
[394027482,1763200301582,-554.45,0.00050958,120]
[394027483,1763200301592,-500.0,0.00050958,120]
[394027484,1763200301601,-500.0,0.00050958,120]
[394027485,1763200301610,-500.0,0.00050958,120]
[394027486,1763200301619,-500.0,0.00050958,120]
[394027487,1763200301629,-505.03620246,0.00050958,120]
[394027488,1763200301638,-582.92,0.00050958,120]
[394027489,1763200301648,-500.0,0.00050958,120]
[394027490,1763200301656,-502.46100892,0.00050958,120]
[394027491,1763200301667,-790.87,0.00050958,120]
[394027492,1763200301676,-629.47,0.00050958,120]
[394027493,1763200301685,-504.14195751,0.00050958,120]
[394027494,1763200301695,-673.94,0.00050958,120]
[394027495,1763200301704,-475.03528884,0.00050958,120]
[394027496,1763200301713,-500.0,0.00050958,120]
[394027497,1763200301722,-648.46170668,0.00050958,120]
[394027498,1763200301731,-758.17,0.00050958,120]
[394027499,1763200301741,-590.85,0.00050958,120]
[394027500,1763200301750,-500.0,0.00050958,120]
[394027501,1763200301759,-504.36514865,0.00050958,120]
[394027502,1763200301769,-500.0,0.00050958,120]
[394027503,1763200301778,-731.68,0.00050958,120]
[394027504,1763200301787,-503.72741786,0.00050958,120]
[394027505,1763200301795,-500.0,0.00050958,120]
[394027506,1763200301805,-571.3,0.00050958,120]
[394027507,1763200301814,-500.0,0.00050958,120]
[394027508,1763200301823,-509.51216047,0.00050958,120]
[394027509,1763200301833,-500.0,0.00050958,120]
[394027510,1763200301842,-500.0,0.00050958,120]
[394027511,1763200301852,-1090.76,0.00050958,7]
[394027512,1763200301862,-514.04358132,0.00050958,120]
[394027513,1763200301871,-609.36264464,0.00050958,120]
[394027514,1763200301881,-500.0,0.00050958,120]
[394027515,1763200301890,-538.50000923,0.00050958,120]
[394027516,1763200301899,-500.0,0.00050958,120]
[394027517,1763200301908,-3400.85,0.00050958,2]
[394027518,1763200301917,-502.6392962,0.00050958,120]
[394027519,1763200301927,-500.0,0.00050958,120]
[394027520,1763200301936,-503.86563065,0.00050958,120]
[394027521,1763200301946,-500.0,0.00050958,120]
[394027522,1763200301956,-1174.97,0.00050958,120]
[394027523,1763200301965,-500.0,0.00050958,120]
[394027524,1763200301974,-618.7,0.00050958,120]
[394027525,1763200301984,-500.0,0.00050958,120]
[394027526,1763200301993,-500.0,0.00050958,120]
[394027527,1763200302002,-506.21,0.00050958,120]
[394027528,1763200302011,-500.0,0.00050958,120]
[394027529,1763200302021,-500.0,0.00050958,120]
[394027530,1763200302030,-536.43,0.00050958,120]
[394027531,1763200302039,-505.46,0.00050958,120]
[394027532,1763200302049,-500.0,0.00050958,120]
[394027533,1763200302059,-500.0,0.00050958,120]
[394027534,1763200302068,-500.0,0.00050958,120]
[394027535,1763200302077,-566.44,0.00050958,120]
[394027536,1763200302086,-500.0,0.00050958,120]
[394027537,1763200302095,-506.09665109,0.00050958,120]
[394027538,1763200302104,-829.99,0.00050958,120]
[394027539,1763200302113,-500.0,0.00050958,120]
[394027540,1763200302122,-500.0,0.00050958,120]
[394027541,1763200302131,-265.94736349,0.00050958,120]
[394027542,1763200302140,-500.0,0.00050958,120]
[394027543,1763200302149,-500.0,0.00050958,120]
[394027544,1763200302159,-500.0,0.00050958,120]
[394027545,1763200302168,-500.0,0.00050958,120]
[394027546,1763200302178,-500.0,0.00050958,120]
[394027547,1763200302187,-500.0,0.00050958,120]
[394027548,1763200302196,-546.38,0.00050958,120]
[394027549,1763200302207,-500.0,0.00050958,120]
[394027550,1763200302218,-785.26,0.00050958,120]
[394027551,1763200302227,-500.0,0.00050958,120]
[394027552,1763200302236,-500.0,0.00050958,120]
[394027553,1763200302246,-471.97595478,0.00050958,120]
[394027554,1763200302255,-500.0,0.00050958,120]
[394027555,1763200302265,-500.0,0.00050958,120]
[394027556,1763200302273,-500.0,0.00050958,120]
[394027557,1763200302283,-500.0,0.00050958,120]
[394027558,1763200302292,-500.0,0.00050958,120]
[394027559,1763200302301,-500.0,0.00050958,120]
[394027560,1763200302311,-500.0,0.00050958,120]
[394027561,1763200302320,-551.17642326,0.00050958,120]
[394027562,1763200302329,-500.0,0.00050958,120]
[394027563,1763200302338,-500.0,0.00050958,7]
[394027564,1763200302348,-500.0,0.00050958,120]
[394027565,1763200302357,-500.0,0.00050958,120]
[394027566,1763200302366,-500.0,0.00050958,120]
[394027567,1763200302376,-500.0,0.00050958,120]
[394027568,1763200302384,-500.0,0.00050958,120]
[394027569,1763200302393,-500.0,0.00050958,120]
[394027570,1763200302403,-1165.61,0.00050958,120]
[394027571,1763200302412,-500.0,0.00050958,120]
[394027572,1763200302421,-629.76,0.00050958,120]
[394027573,1763200302431,-500.0,0.00050958,120]
[394027574,1763200302440,-511.51,0.00050958,2]
[394027575,1763200302450,-500.0,0.00050958,120]
[394027576,1763200302459,-500.0,0.00050958,120]
[394027577,1763200302468,-500.0,0.00050958,120]
[394027578,1763200302478,-500.0,0.00050958,120]
[394027579,1763200302487,-500.0,0.00050958,120]
[394027580,1763200302497,-515.28,0.00050958,120]
[394027581,1763200302506,-500.0,0.00050958,120]
[394027582,1763200302517,-500.0,0.00050958,120]
[394027583,1763200302526,-500.0,0.00050958,120]
[394027584,1763200302535,-500.0,0.00050958,120]
[394027585,1763200302544,-500.0,0.00050958,120]
[394027586,1763200302554,-958.77,0.00050958,120]
[394027587,1763200302563,-500.0,0.00050958,120]
[394027588,1763200302573,-500.0,0.00050958,120]
[394027589,1763200302582,-521.1372391,0.00050958,120]
[394027590,1763200302591,-500.0,0.00050958,120]
[394027591,1763200302600,-500.0,0.00050958,120]
[394027592,1763200302610,-500.0,0.00050958,120]
[394027593,1763200302619,-500.0,0.00050958,120]
[394027594,1763200302628,-500.0,0.00050958,120]
[394027595,1763200302637,-500.0,0.00050958,120]
[394027596,1763200302646,-500.0,0.00050958,120]
[394027597,1763200302655,-500.0,0.00050958,120]
[394027598,1763200302665,-500.0,0.00050958,120]
[394027599,1763200302674,-500.0,0.00050958,120]
[394027600,1763200302683,-500.0,0.00050958,120]
[394027601,1763200302692,-500.0,0.00050958,120]
[394027602,1763200302701,-503.12803069,0.00050958,120]
[394027603,1763200302710,-500.0,0.00050958,120]
[394027604,1763200302720,-502.13115184,0.00050958,120]
[394027605,1763200302729,-531.24,0.00050958,120]
[394027606,1763200302738,-500.0,0.00050958,120]
[394027607,1763200302747,-1312.52,0.00050958,120]
[394027608,1763200302756,-666.72,0.00050958,120]
[394027609,1763200302766,-500.0,0.00050958,120]
[394027610,1763200302775,-500.0,0.00050958,120]
[394027611,1763200302785,-500.0,0.00050958,120]
[394027612,1763200302794,-500.0,0.00050958,120]
[394027613,1763200302803,-500.0,0.00050958,120]
[394027614,1763200302812,-505.97,0.00050958,120]
[394027615,1763200302822,-500.0,0.00050958,120]
[394027616,1763200302831,-507.65,0.00050958,2]
[394027617,1763200302840,-500.0,0.00050958,120]
[394027618,1763200302850,-655.84,0.00050958,120]
[394027619,1763200302859,-500.0,0.00050958,120]
[394027620,1763200302868,-500.0,0.00050958,120]
[394027621,1763200302878,-500.0,0.00050958,120]
[394027622,1763200302887,-566.68,0.00050958,120]
[394027623,1763200302897,-500.0,0.00050958,120]
[394027624,1763200302906,-629.45,0.00050958,120]
[394027625,1763200302914,-500.0,0.00050958,120]
[394027626,1763200302923,-500.0,0.00050958,120]
[394027627,1763200302932,-522.65234189,0.00050958,120]
[394027628,1763200302942,-532.44,0.00050958,120]
[394027629,1763200302951,-517.42,0.00050958,120]
[394027630,1763200302960,-500.0,0.00050958,120]
[394027631,1763200302968,-500.0,0.00050958,120]
[394027632,1763200302978,-512.08,0.00050958,120]
[394027633,1763200302988,-948.59,0.00050958,120]
[394027634,1763200302997,-504.03231783,0.00050958,120]
[394027635,1763200303006,-500.0,0.00050958,120]
[394027636,1763200303015,-500.0,0.00050958,120]
[394027637,1763200303027,-500.0,0.00050958,120]
[394027638,1763200303036,-1011.89,0.00050958,120]
[394027639,1763200303045,-500.0,0.00050958,120]
[394027640,1763200303054,-875.77,0.00050958,120]
[394027641,1763200303063,-500.0,0.00050958,120]
[394027642,1763200303072,-500.0,0.00050958,120]
[394027643,1763200303081,-500.0,0.00050958,120]
[394027644,1763200303090,-500.0,0.00050958,120]
[394027645,1763200303098,-500.0,0.00050958,120]
[394027646,1763200303107,-504.73633513,0.00050958,120]
[394027647,1763200303116,-500.0,0.00050958,120]
[394027648,1763200303124,-500.0,0.00050958,120]
[394027649,1763200303133,-500.0,0.00050958,120]
[394027650,1763200303141,-604.95,0.00050958,120]
[394027651,1763200303150,-500.0,0.00050958,120]
[394027652,1763200303158,-500.0,0.00050958,120]
[394027653,1763200303167,-500.0,0.00050958,120]
[394027654,1763200303176,-500.0,0.00050958,120]
[394027655,1763200303184,-564.94,0.00050958,120]
[394027656,1763200303193,-500.0,0.00050958,120]
[394027657,1763200303202,-500.0,0.00050958,120]
[394027658,1763200303213,-500.0,0.00050958,120]
[394027659,1763200303222,-1119.68,0.00050958,120]
[394027660,1763200303231,-500.0,0.00050958,120]
[394027661,1763200303240,-500.0,0.00050958,120]
[394027662,1763200303250,-500.0,0.00050958,120]
[394027663,1763200303259,-1259.05,0.00050958,120]
[394027664,1763200303268,-865.15,0.00050958,120]
[394027665,1763200303277,-500.0,0.00050958,120]
[394027666,1763200303287,-411.06172933,0.00050958,2]
[394027667,1763200303295,-955.73,0.00050958,120]
[394027668,1763200303304,-500.0,0.00050958,120]
[394027669,1763200303313,-500.0,0.00050958,120]
[394027670,1763200303323,-500.0,0.00050958,120]
[394027671,1763200303332,-500.0,0.00050958,120]
[394027672,1763200303341,-500.0,0.00050958,21]
[394027673,1763200303350,-500.0,0.00050958,120]
[394027674,1763200303359,-505.70057798,0.00050958,120]
[394027675,1763200303368,-500.0,0.00050958,120]
[394027676,1763200303377,-1298.83,0.00050958,120]
[394027677,1763200303385,-500.0,0.00050958,120]
[394027678,1763200303394,-687.91,0.00050958,120]
[394027679,1763200303403,-500.0,0.00050958,120]
[394027680,1763200303412,-505.96281872,0.00050958,120]
[394027681,1763200303421,-500.0,0.00050958,120]
[394027682,1763200303430,-500.0,0.00050958,120]
[394027683,1763200303439,-500.0,0.00050958,120]
[394027684,1763200303449,-500.0,0.00050958,120]
[394027685,1763200303458,-1584.66,0.00050958,120]
[394027686,1763200303468,-500.0,0.00050958,120]
[394027687,1763200303477,-625.34,0.00050958,120]
[394027688,1763200303486,-500.0,0.00050958,120]
[394027689,1763200303495,-500.0,0.00050958,120]
[394027690,1763200303504,-500.0,0.00050958,120]
[394027691,1763200303513,-626.26,0.00050958,120]
[394027692,1763200303523,-500.0,0.00050958,120]
[394027693,1763200303532,-500.0,0.00050958,120]
[394027694,1763200303541,-500.0,0.00050958,120]
[394027695,1763200303550,-776.15,0.00050958,120]
[394027696,1763200303559,-500.0,0.00050958,120]
[394027697,1763200303568,-1059.33,0.00050958,120]
[394027698,1763200303578,-500.0,0.00050958,120]
[394027699,1763200303587,-2689.19,0.00050958,120]
[394027700,1763200303596,-500.0,0.00050958,120]
[394027701,1763200303604,-1158.62,0.00050958,120]
[394027702,1763200303614,-520.26,0.00050958,120]
[394027703,1763200303623,-500.0,0.00050958,120]
[394027704,1763200303632,-500.0,0.00050958,120]
[394027705,1763200303641,-777.19,0.00050958,120]
[394027706,1763200303650,-500.0,0.00050958,120]
[394027707,1763200303659,-500.0,0.00050958,120]
[394027708,1763200303668,-500.0,0.00050958,120]
[394027709,1763200303803,-500.0,0.00050958,120]
[394027710,1763200303813,-500.0,0.00050958,120]
[394027711,1763200303822,-500.0,0.00050958,120]
[394027712,1763200303831,-500.0,0.00050958,120]
[394027713,1763200303840,-1619.88,0.00050958,30]
[394027714,1763200303849,-1089.69,0.00050958,120]
[394027715,1763200303858,-500.0,0.00050958,120]
[394027716,1763200303868,-576.07,0.00050958,120]
[394027717,1763200303877,-518.73337965,0.00050958,120]
[394027718,1763200303886,-500.0,0.00050958,120]
[394027719,1763200303896,-1298.65,0.00050958,120]
[394027720,1763200303905,-527.42,0.00050958,120]
[394027721,1763200303914,-500.0,0.00050958,120]
[394027722,1763200303923,-2380.54,0.00050958,120]
[394027723,1763200303933,-1477.9,0.00050958,120]
[394027724,1763200303942,-500.0,0.00050958,120]
[394027725,1763200303951,-500.0,0.00050958,120]
[394027726,1763200303960,-500.0,0.00050958,120]
[394027727,1763200303969,-745.02,0.00050958,120]
[394027728,1763200303978,-979.94,0.00050958,120]
[394027729,1763200303988,-500.0,0.00050958,120]
[394027730,1763200303997,-500.41,0.00050958,120]
[394027731,1763200304006,-500.0,0.00050958,120]
[394027732,1763200304015,-500.0,0.00050958,120]
[394027733,1763200304024,-500.0,0.00050958,120]
[394027734,1763200304033,-500.0,0.00050958,120]
[394027735,1763200304042,-507.72,0.00050958,120]
[394027736,1763200304052,-500.0,0.00050958,120]
[394027737,1763200304061,-539.7,0.00050958,120]
[394027738,1763200304070,-500.0,0.00050958,120]
[394027739,1763200304079,-789.21,0.00050958,120]
[394027740,1763200304087,-500.0,0.00050958,120]
[394027741,1763200304097,-500.0,0.00050958,120]
[394027742,1763200304106,-937.06,0.00050958,120]
[394027743,1763200304115,-500.0,0.00050958,120]
[394027744,1763200304124,-500.0,0.00050958,120]
[394027745,1763200304133,-523.49,0.00050958,120]
[394027746,1763200304142,-571.26,0.00050958,120]
[394027747,1763200304152,-500.0,0.00050958,120]
[394027748,1763200304160,-500.0,0.00050958,120]
[394027749,1763200304170,-840.74,0.00050958,120]
[394027750,1763200304179,-500.0,0.00050958,120]
[394027751,1763200304188,-839.73,0.00050958,120]
[394027752,1763200304197,-500.0,0.00050958,120]
[394027753,1763200304207,-500.0,0.00050958,120]
[394027754,1763200304218,-548.3,0.00050958,120]
[394027755,1763200304226,-470.82371476,0.00050958,120]
[394027756,1763200304235,-533.64,0.00050958,120]
[394027757,1763200304245,-500.0,0.00050958,120]
[394027758,1763200304254,-500.0,0.00050958,120]
[394027759,1763200304263,-1390.62,0.00050958,120]
[394027760,1763200304272,-500.0,0.00050958,120]
[394027761,1763200304281,-572.61,0.00050958,120]
[394027762,1763200304291,-1276.71,0.00050958,120]
[394027763,1763200304300,-500.0,0.00050958,120]
[394027764,1763200304309,-945.13,0.00050958,120]
[394027765,1763200304318,-1188.94,0.00050958,120]
[394027766,1763200304327,-500.0,0.00050958,120]
[394027767,1763200304336,-1077.77,0.00050958,120]
[394027768,1763200304345,-500.0,0.00050958,120]
[394027769,1763200304354,-516.49554254,0.00050958,120]
[394027770,1763200304363,-500.0,0.00050958,120]
[394027771,1763200304372,-1791.91,0.00050958,120]
[394027772,1763200304381,-500.0,0.00050958,120]
[394027773,1763200304391,-500.0,0.00050958,120]
[394027774,1763200304400,-500.0,0.00050958,120]
[394027775,1763200304408,-500.0,0.00050958,120]
[394027776,1763200304418,-500.0,0.00050958,120]
[394027777,1763200304427,-500.0,0.00050958,120]
[394027778,1763200304436,-500.0,0.00050958,120]
[394027779,1763200304445,-1017.14,0.00050958,120]
[394027780,1763200304455,-500.0,0.00050958,120]
[394027781,1763200304464,-500.0,0.00050958,120]
[394027782,1763200304473,-500.0,0.00050958,120]
[394027783,1763200304483,-936.67,0.00050958,120]
[394027784,1763200304492,-500.0,0.00050958,120]
[394027785,1763200304501,-500.0,0.00050958,120]
[394027786,1763200304510,-649.89,0.00050958,120]
[394027787,1763200304520,-1776.75,0.00050958,120]
[394027788,1763200304529,-500.0,0.00050958,120]
[394027789,1763200304539,-544.8587939,0.00050958,120]
[394027790,1763200304548,-500.0,0.00050958,120]
[394027791,1763200304557,-500.0,0.00050958,120]
[394027792,1763200304566,-500.0,0.00050958,120]
[394027793,1763200304576,-500.0,0.00050958,120]
[394027794,1763200304586,-500.0,0.00050958,120]
[394027795,1763200304595,-532.97,0.00050958,120]
[394027796,1763200304604,-500.0,0.00050958,120]
[394027797,1763200304614,-777.09,0.00050958,120]
[394027798,1763200304624,-500.0,0.00050958,120]
[394027799,1763200304633,-500.0,0.00050958,120]
[394027800,1763200304643,-500.0,0.00050958,120]
[394027801,1763200304652,-500.0,0.00050958,120]
[394027802,1763200304661,-1276.7,0.00050958,7]
[394027803,1763200304671,-927.9,0.00050958,120]
[394027804,1763200304680,-500.0,0.00050958,120]
[394027805,1763200304689,-979.1,0.00050958,120]
[394027806,1763200304699,-769.66,0.00050958,120]
[394027807,1763200304710,-500.0,0.00050958,120]
[394027808,1763200304720,-500.0,0.00050958,120]
[394027809,1763200304730,-500.0,0.00050958,120]
[394027810,1763200304739,-500.0,0.00050958,120]
[394027811,1763200304748,-609.02,0.00050958,120]
[394027812,1763200304757,-500.0,0.00050958,10]
[394027813,1763200304768,-500.0,0.00050958,120]